bitfinex/quotes_SOLUSD_20240916
["timestamp","ask_amount","ask_price","bid_price","bid_amount"]
[1726459604402,23.776884,131.06,131.02,6.869]
[1726459604991,23.776884,131.06,131.03,6.8685]
[1726459605392,3.02977427,131.09,131.03,32.4917]
[1726459605588,0.2533287,131.11,131.04,21.88933631]
[1726459606220,0.2533287,131.11,131.05,17.1684]
[1726459606582,7.1181287,131.11,131.07,6.8665]
[1726459607593,23.776884,131.1,131.06,6.8669]
[1726459611316,23.776884,131.1,131.05,24.0359]
[1726459611618,30.641984,131.1,131.06,6.867]
[1726459621922,0.2533287,131.11,131.07,17.1661]
[1726459622234,0.2533287,131.11,131.08,6.8655]
[1726459622829,0.2533287,131.11,131.07,24.0325]
[1726459623132,0.2533287,131.11,131.06,22.965]
[1726459623313,0.2533287,131.11,131.06,16.098]
[1726459624421,6.866,131.08,131.06,16.098]
[1726459624625,23.776884,131.07,131.04,23.3168]
[1726459625137,23.776884,131.07,131.02,15.2783]
[1726459625314,23.776884,131.05,131.02,15.2783]
[1726459630135,30.644484,131.05,131.02,15.2783]
[1726459631217,6.8682,131.04,131.0,13.5124]
[1726459631821,30.645684,131.03,130.99,16.1753]
[1726459632419,6.8693,131.02,130.99,16.1753]
[1726459632636,30.645684,131.03,130.99,16.1753]
[1726459633529,6.8682,131.04,131.0,6.87]
[1726459633727,23.776884,131.05,131.01,6.8696]
[1726459634313,23.776884,131.07,131.01,6.8696]
[1726459634515,23.776884,131.05,131.01,6.8696]
[1726459634712,6.8672,131.06,131.01,6.8696]
[1726459635514,6.8672,131.06,131.02,6.8691]
[1726459635714,6.8672,131.06,131.01,6.8695]
[1726459636145,23.776884,131.05,131.02,6.8691]
[1726459637715,23.776884,131.05,131.01,6.8695]
[1726459638130,30.644584,131.05,131.01,6.8695]
[1726459640963,6.8682,131.04,131.0,24.0451]
[1726459641922,6.8687,131.03,130.99,23.0459]
[1726459650333,6.8683,131.04,131.0,6.8701]
[1726459650534,33.78227605,131.05,131.01,6.8696]
[1726459650833,30.644484,131.05,131.01,6.8696]
[1726459651030,30.644484,131.05,131.0,6.87]
[1726459652658,6.8682,131.04,131.0,6.87]
[1726459653742,23.776884,131.04,131.01,6.8695]
[1726459659831,6.8671,131.06,131.02,6.8691]
[1726459660038,6.8666,131.07,131.03,6.8686]
[1726459660249,6.866,131.08,131.04,6.868]
[1726459660738,6.866,131.08,131.03,17.1713]
[1726459660739,6.8665,131.07,131.03,24.0397]
[1726459664139,6.8671,131.06,131.03,17.1713]
[1726459668963,23.776884,131.05,131.01,6.8695]
[1726459669170,30.644484,131.05,131.01,6.8695]
[1726459669669,23.776884,131.05,131.01,6.8695]
[1726459669845,23.776884,131.05,131.02,6.869]
[1726459670157,70.2549115,131.1,131.02,6.869]
[1726459670158,6.8667,131.07,131.02,6.869]
[1726459670365,23.776884,131.06,131.02,6.869]
[1726459670551,30.643984,131.06,131.02,6.869]
[1726459672273,6.8662,131.08,131.03,6.8686]
[1726459672967,23.776884,131.07,131.03,6.8686]
[1726459675467,30.643384,131.07,131.03,6.8686]
[1726459676882,6.8673,131.06,131.02,24.0414]
[1726459678351,30.643584,131.07,131.02,24.0414]
[1726459688188,30.643584,131.07,131.03,6.8686]
[1726459699509,30.643584,131.07,131.03,22.7027]
[1726459703983,6.8671,131.06,131.03,15.8341]
[1726459704308,6.8672,131.06,131.03,15.8341]
[1726459705508,6.8676,131.05,131.03,15.8341]
[1726459705880,6.8672,131.06,131.03,15.8341]
[1726459706284,23.776884,131.05,131.03,15.8341]
[1726459706696,6.8666,131.07,131.03,15.8341]
[1726459706905,23.776884,131.06,131.03,15.8341]
[1726459709598,6.8666,131.07,131.03,22.7026]
[1726459714906,30.644084,131.06,131.03,15.8341]
[1726459723327,23.776884,131.06,131.03,15.8341]
[1726459723494,6.8656,131.09,131.03,33.0052]
[1726459723697,0.2533287,131.11,131.04,6.4813]
[1726459723899,7.1178287,131.11,131.05,32.91063631]
[1726459724110,0.2533287,131.11,131.08,6.8659]
[1726459724628,0.2533287,131.11,131.09,6.865]
[1726459724808,0.2533287,131.11,131.08,6.8659]
[1726459731149,0.2533287,131.11,131.09,6.8653]
[1726459735328,0.2533287,131.11,131.08,6.8658]
[1726459742359,7.1178287,131.11,131.07,24.0322]
[1726459742661,6.8649,131.1,131.06,23.3829]
[1726459743263,6.8658,131.09,131.06,16.5159]
[1726459743940,30.643084,131.08,131.04,30.5188]
[1726459744256,23.776884,131.08,131.04,46.26103631]
[1726459744559,23.776884,131.08,131.04,30.5189]
[1726459744931,30.642984,131.08,131.04,30.5189]
[1726459745841,6.8666,131.07,131.03,16.0139]
[1726459746549,17.4149287,131.11,131.01,30.6863]
[1726459746550,23.776884,131.05,131.01,30.6863]
[1726459751235,30.644484,131.05,131.01,24.0433]
[1726459751464,30.644484,131.05,131.01,17.1738]
[1726459752364,30.644484,131.05,131.01,24.0433]
[1726459763154,30.644484,131.05,131.01,20.00354182]
[1726459764668,30.644484,131.05,131.01,13.13404182]
[1726459765080,6.8685,131.04,131.0,15.1284]
[1726459765948,30.644584,131.05,131.0,21.9982]
[1726459766959,30.644584,131.05,131.01,6.8696]
[1726459769084,33.77032189,131.05,131.01,6.8696]
[1726459775577,26.90262189,131.05,131.0,15.1284]
[1726459775751,23.776884,131.03,130.99,6.8702]
[1726459776865,23.776884,131.04,130.98,6.3479]
[1726459777949,30.645084,131.04,130.99,6.8705]
[1726459779785,30.645084,131.04,131.0,6.8702]
[1726459779987,6.8677,131.05,131.01,6.8696]
[1726459782364,20.0,131.09,131.01,17.1734]
[1726459782766,6.867,131.07,131.02,6.8691]
[1726459783386,6.8672,131.06,131.01,24.0429]
[1726459784376,23.776884,131.05,131.01,24.0429]
[1726459785386,23.776884,131.05,131.01,24.0429]
[1726459788087,30.644584,131.05,131.01,24.0429]
[1726459788264,6.8683,131.04,130.99,6.8705]
[1726459788880,6.8683,131.04,131.0,6.8701]
[1726459792597,23.776884,131.05,131.01,6.8692]
[1726459793870,30.644584,131.05,131.01,6.8692]
[1726459794569,30.644584,131.05,131.0,24.0448]
[1726459794888,30.644584,131.05,131.01,6.8695]
[1726459797784,30.644584,131.05,131.0,24.0447]
[1726459800904,75.08977214,131.09,131.0,32.91673631]
[1726459801278,6.8669,131.07,131.02,6.8687]
[1726459802273,23.776884,131.06,131.02,6.8687]
[1726459803394,23.776884,131.06,131.03,6.8686]
[1726459805904,23.776884,131.06,131.02,6.869]
[1726459806126,23.776884,131.07,131.0,32.5878]
[1726459806416,23.776884,131.05,131.01,6.8692]
[1726459806815,6.8666,131.07,131.02,6.8687]
[1726459807115,23.776884,131.06,131.02,6.8687]
[1726459807320,23.776884,131.06,131.01,6.8695]
[1726459807614,6.8677,131.05,131.01,6.8695]
[1726459808409,6.3677,131.05,131.01,6.8695]
[1726459809587,23.776884,131.06,131.02,6.8689]
[1726459809800,23.776884,131.06,131.03,6.8685]
[1726459810420,3.03889123,131.09,131.04,24.0379]
[1726459810421,9.90449123,131.09,131.04,24.0379]
[1726459810599,6.8656,131.09,131.04,24.0379]
[1726459811412,6.865,131.1,131.05,6.8674]
[1726459811607,0.2533287,131.11,131.04,33.6637]
[1726459811907,0.2533287,131.11,131.04,49.40583631]
[1726459812494,0.2533287,131.11,131.07,6.8664]
[1726459814204,24.0302127,131.11,131.07,6.8664]
[1726459814924,0.2533287,131.11,131.08,6.8659]
[1726459818316,0.2533287,131.11,131.07,6.8665]
[1726459819411,0.2533287,131.11,131.07,22.60863631]
[1726459819716,0.2533287,131.11,131.07,6.8665]
[1726459823521,30.640784,131.12,131.07,6.8665]
[1726459823522,28.3941127,131.12,131.07,6.8665]
[1726459825529,6.8651,131.1,131.06,24.0338]
[1726459825826,73.776884,131.13,131.05,6.8674]
[1726459826032,17.1602,131.12,131.04,23.3618]
[1726459826329,6.8665,131.07,131.03,24.0392]
[1726459826618,6.8672,131.06,131.01,7.1226287]
[1726459827430,30.644584,131.05,131.01,0.2533287]
[1726459828224,30.644584,131.05,131.01,7.1228287]
[1726459831026,30.644084,131.06,131.01,7.1228287]
[1726459836512,6.8676,131.05,131.01,7.1228287]
[1726459844439,23.776884,131.06,131.01,7.1228287]
[1726459844440,23.776884,131.06,131.02,6.8691]
[1726459845346,6.8661,131.08,131.02,17.1724]
[1726459845549,6.8666,131.07,131.03,6.8685]
[1726459845719,6.8666,131.07,131.02,24.0415]
[1726459846729,23.776884,131.06,131.02,24.0415]
[1726459849451,23.276884,131.06,131.02,24.0415]
[1726459850756,30.144184,131.06,131.02,17.1724]
[1726459851062,23.276884,131.06,131.02,17.1724]
[1726459851239,30.143984,131.06,131.02,24.0414]
[1726459855757,30.144084,131.06,131.02,6.869]
[1726459856452,23.276884,131.06,131.03,6.8686]
[1726459857673,6.8661,131.08,131.03,6.8686]
[1726459857968,23.776884,131.07,131.03,6.8686]
[1726459862070,30.643484,131.07,131.03,6.8686]
[1726459869147,30.643484,131.07,131.04,16.003]
[1726459870167,23.776884,131.07,131.04,16.003]
[1726459872646,6.8662,131.08,131.04,22.8707]
[1726459872850,30.642484,131.09,131.04,24.3965739]
[1726459873067,51.1,131.1,131.05,18.69445746]
[1726459873251,22.73097542,131.15,131.06,22.22393631]
[1726459873252,51.1,131.11,131.06,22.22393631]
[1726459873454,51.1,131.1,131.07,16.75672464]
[1726459873659,51.1,131.1,131.08,1.52558085]
[1726459874258,51.1,131.1,131.08,8.39158085]
[1726459875863,51.1,131.1,131.08,6.866]
[1726459876274,51.1,131.1,131.07,39.2635]
[1726459876863,51.1,131.11,131.07,39.2635]
[1726459878271,57.9646,131.11,131.07,39.2635]
[1726459882658,6.8646,131.11,131.07,39.2635]
[1726459887585,6.8641,131.12,131.07,39.2635]
[1726459887885,6.8641,131.12,131.08,6.8658]
[1726459888988,0.2533287,131.15,131.1,6.8645]
[1726459890381,6.8629,131.14,131.1,6.8645]
[1726459891684,0.2533287,131.15,131.12,6.8639]
[1726459891860,0.2533287,131.15,131.11,40.4383]
[1726459898582,7.1157287,131.15,131.11,40.4383]
[1726459899361,23.776884,131.14,131.11,16.4132]
[1726459899583,24.0302127,131.15,131.11,16.4132]
[1726459900366,6.8635,131.13,131.11,16.4132]
[1726459905287,6.863,131.14,131.11,16.4132]
[1726459908477,7.1156287,131.15,131.11,23.2776]
[1726459909380,0.2533287,131.15,131.11,23.2776]
[1726459909779,0.2533287,131.15,131.12,17.1593]
[1726459910095,0.2533287,131.15,131.13,6.8631]
[1726459911216,0.2533287,131.15,131.14,6.8628]
[1726459912780,0.2533287,131.15,131.12,17.1593]
[1726459914003,0.2533287,131.15,131.13,6.863]
[1726459923710,0.2533287,131.15,131.12,24.0231]
[1726459931015,0.2533287,131.15,131.14,6.8628]
[1726459931186,0.2533287,131.15,131.13,6.8629]
[1726459933107,0.2533287,131.15,131.14,6.8628]
[1726459937289,23.776884,131.18,131.14,6.8628]
[1726459945411,0.0066574,131.19,131.15,16.57294107]
[1726459945616,9.85582954,131.21,131.17,6.8609]
[1726459945800,5.8660574,131.21,131.17,6.8609]
[1726459946111,3.98977214,131.22,131.18,6.8603]
[1726459946414,3.98977214,131.22,131.16,17.154]
[1726459946415,6.8591,131.22,131.17,6.8611]
[1726459947302,23.776884,131.21,131.17,6.8611]
[1726459948010,6.8591,131.22,131.18,6.8605]
[1726459949120,23.776884,131.22,131.18,17.1516]
[1726459949323,24.0302127,131.23,131.19,6.8601]
[1726459950295,30.8884127,131.23,131.19,6.8601]
[1726459951817,24.0302127,131.23,131.19,6.8601]
[1726459954402,23.776884,131.22,131.18,17.1516]
[1726459954601,0.2533287,131.23,131.18,17.1516]
[1726459954900,23.776884,131.21,131.18,17.1516]
[1726459961017,7.1117287,131.23,131.19,6.8602]
[1726459961828,24.0302127,131.23,131.19,6.8602]
[1726459963630,0.2533287,131.23,131.18,40.5088]
[1726459964428,23.776884,131.22,131.18,40.5088]
[1726459965129,23.776884,131.22,131.19,6.8598]
[1726459965326,0.2533287,131.23,131.19,6.8598]
[1726459966432,7.1115287,131.23,131.19,6.8598]
[1726459967322,0.2533287,131.23,131.19,6.8598]
[1726459969526,0.2533287,131.23,131.18,40.5088]
[1726459970823,6.8587,131.22,131.18,40.5088]
[1726459973440,7.1116287,131.23,131.18,40.5088]
[1726459973639,23.776884,131.22,131.18,40.5088]
[1726459985323,30.635584,131.22,131.18,40.5088]
[1726459985640,23.776884,131.21,131.18,40.5088]
[1726459986148,23.776884,131.22,131.18,40.5088]
[1726459986446,0.2533287,131.23,131.19,6.8601]
[1726459989326,29.3880127,131.24,131.19,6.8601]
[1726459993552,6.8582,131.23,131.19,6.8601]
[1726459994746,6.8588,131.22,131.18,40.5087]
[1726459995049,23.776884,131.21,131.18,40.5087]
[1726459995543,6.8582,131.23,131.19,6.8601]
[1726459995844,30.634584,131.24,131.19,6.8601]
[1726459996219,30.634584,131.24,131.2,6.8596]
[1726459998531,23.776884,131.24,131.21,6.8592]
[1726460002247,23.776884,131.25,131.22,6.8586]
[1726460007149,0.2533287,131.27,131.24,6.8576]
[1726460007348,0.2533287,131.27,131.25,6.8571]
[1726460010562,0.2533287,131.27,131.24,24.0009]
[1726460011561,0.2533287,131.27,131.22,22.8639]
[1726460011738,23.776884,131.26,131.22,22.8639]
[1726460012060,23.776884,131.26,131.22,16.0056]
[1726460014537,45.90733492,131.26,131.22,16.0056]
[1726460014742,23.776884,131.24,131.21,6.8591]
[1726460014964,36.47022469,131.24,131.19,21.941]
[1726460015142,12.69334069,131.23,131.19,21.941]
[1726460015337,23.776884,131.22,131.19,15.0808]
[1726460015544,37.28597469,131.22,131.19,15.0808]
[1726460018248,37.28597469,131.22,131.18,17.1509]
[1726460019376,37.28597469,131.22,131.18,24.0115]
[1726460019539,53.61436333,131.22,131.18,24.0115]
[1726460019742,60.47306333,131.22,131.18,24.0115]
[1726460020054,72.08234255,131.22,131.18,24.0115]
[1726460020250,55.75395391,131.22,131.18,24.0115]
[1726460020446,48.89525391,131.22,131.18,24.0115]
[1726460020647,65.51564255,131.22,131.18,24.0115]
[1726460021573,23.776884,131.2,131.18,24.0115]
[1726460024643,31.79436991,131.2,131.18,24.0115]
[1726460025079,31.79436991,131.2,131.16,15.4196]
[1726460026269,31.79436991,131.2,131.18,24.0115]
[1726460026583,31.79436991,131.2,131.16,15.4196]
[1726460028390,31.79436991,131.2,131.18,6.8606]
[1726460028595,31.79436991,131.2,131.16,15.4196]
[1726460030861,45.36244223,131.21,131.16,15.4196]
[1726460031168,23.776884,131.22,131.16,16.94411114]
[1726460031478,57.9566,131.26,131.17,7.73586659]
[1726460031674,86.50363657,131.26,131.18,17.35728575]
[1726460031876,28.54703657,131.25,131.18,17.35728575]
[1726460032781,23.776884,131.24,131.18,17.35728575]
[1726460032991,52.32392057,131.24,131.18,15.834]
[1726460033365,28.54703657,131.23,131.18,15.834]
[1726460047191,23.776884,131.22,131.18,15.834]
[1726460047394,28.54703657,131.21,131.18,15.834]
[1726460050704,35.40633657,131.21,131.18,15.834]
[1726460051002,28.54703657,131.21,131.18,15.834]
[1726460054682,30.635684,131.22,131.18,15.834]
[1726460056913,33.64994132,131.22,131.18,15.834]
[1726460064005,46.80456534,131.22,131.18,15.834]
[1726460064205,6.8593,131.21,131.18,15.834]
[1726460064384,23.776884,131.2,131.18,15.834]
[1726460074508,23.776884,131.21,131.18,15.834]
[1726460082102,36.93150802,131.21,131.18,15.834]
[1726460083616,43.79080802,131.21,131.18,15.834]
[1726460085131,6.8599,131.2,131.17,6.212]
[1726460085299,30.637184,131.19,131.14,6.0252]
[1726460085498,6.8618,131.16,131.13,0.2533287]
[1726460087415,30.638284,131.17,131.13,0.2533287]
[1726460088212,23.776884,131.15,131.13,0.2533287]
[1726460088404,6.8618,131.16,131.13,0.2533287]
[1726460088405,23.776884,131.16,131.13,0.2533287]
[1726460091218,23.776884,131.17,131.13,0.2533287]
[1726460096401,47.60728355,131.17,131.13,0.2533287]
[1726460099315,54.46868355,131.17,131.13,0.2533287]
[1726460099513,47.60728355,131.17,131.13,0.2533287]
[1726460099705,6.8619,131.16,131.13,0.2533287]
[1726460100924,23.776884,131.15,131.13,0.2533287]
[1726460101694,6.8624,131.15,131.13,0.2533287]
[1726460101931,30.638884,131.16,131.13,0.2533287]
[1726460103106,6.8608,131.18,131.13,0.2533287]
[1726460103425,23.776884,131.17,131.13,0.2533287]
[1726460103918,23.776884,131.18,131.13,0.2533287]
[1726460104303,30.637784,131.18,131.14,15.4332]
[1726460104501,54.46818355,131.18,131.14,15.4332]
[1726460108324,23.776884,131.16,131.14,15.4332]
[1726460108536,47.60728355,131.16,131.14,15.4332]
[1726460109622,47.60728355,131.16,131.11,16.0517]
[1726460109813,30.639784,131.14,131.11,16.0517]
[1726460110603,6.8634,131.13,131.1,6.2815]
[1726460111110,30.639884,131.14,131.1,6.2815]
[1726460113013,23.776884,131.14,131.1,6.2815]
[1726460114128,23.83039955,131.15,131.1,6.2815]
[1726460114341,20.0,131.18,131.1,6.2815]
[1726460114632,53.66328756,131.18,131.1,6.2815]
[1726460114802,60.52418756,131.18,131.1,6.2815]
[1726460115000,6.8614,131.17,131.1,6.2815]
[1726460115226,23.83039955,131.16,131.1,6.2815]
[1726460124329,23.776884,131.15,131.1,6.2815]
[1726460124513,23.83039955,131.14,131.1,6.2815]
[1726460124713,30.69329955,131.14,131.1,6.2815]
[1726460124916,30.640284,131.13,131.1,6.2815]
[1726460125133,23.83039955,131.12,131.1,6.2815]
[1726460126531,23.776884,131.13,131.1,6.2815]
[1726460131123,6.8634,131.13,131.1,6.2815]
[1726460133420,6.864,131.12,131.09,16.0326287]
[1726460133630,6.8644,131.11,131.09,0.2533287]
[1726460143745,30.69439955,131.12,131.09,0.2533287]
[1726460143952,6.864,131.12,131.09,0.2533287]
[1726460145537,6.8636,131.13,131.09,0.2533287]
[1726460145740,23.776884,131.12,131.09,0.2533287]
[1726460153839,9.83288801,131.14,131.09,0.2533287]
[1726460154036,16.69618801,131.14,131.09,0.2533287]
[1726460154351,40.52658756,131.14,131.09,0.2533287]
[1726460155145,30.69399955,131.13,131.09,0.2533287]
[1726460155540,6.8639,131.12,131.09,0.2533287]
[1726460155759,30.69429955,131.12,131.09,0.2533287]
[1726460156644,6.8645,131.11,131.09,0.2533287]
[1726460156858,30.69439955,131.12,131.09,0.2533287]
[1726460157376,30.640384,131.13,131.09,0.2533287]
[1726460159537,54.47078355,131.13,131.09,0.2533287]
[1726460159743,23.83039955,131.12,131.09,0.2533287]
[1726460160349,23.776884,131.11,131.09,0.2533287]
[1726460160550,6.8657,131.09,131.06,15.8653]
[1726460160856,30.69609955,131.09,131.06,15.8653]
[1726460161158,6.866,131.08,131.06,15.8653]
[1726460161466,6.866,131.08,131.05,0.2533287]
[1726460162960,30.643584,131.07,131.05,0.2533287]
[1726460163335,23.776884,131.07,131.05,0.2533287]
[1726460164168,6.8656,131.09,131.05,0.2533287]
[1726460165057,20.02011756,131.09,131.05,0.2533287]
[1726460167750,36.98491711,131.08,131.05,0.2533287]
[1726460168664,13.15451756,131.08,131.05,0.2533287]
[1726460176959,23.776884,131.09,131.05,0.2533287]
[1726460178044,23.83039955,131.11,131.05,0.2533287]
[1726460178772,36.98491711,131.11,131.05,0.2533287]
[1726460179082,13.15451756,131.1,131.05,0.2533287]
[1726460179556,30.642384,131.09,131.05,0.2533287]
[1726460179753,20.02061756,131.08,131.05,0.2533287]
[1726460180058,23.83039955,131.07,131.05,0.2533287]
[1726460180261,13.15451756,131.06,131.05,0.2533287]
[1726460181951,30.69689955,131.07,131.05,0.2533287]
[1726460182276,6.8665,131.07,131.05,0.2533287]
[1726460184174,6.867,131.06,131.05,0.2533287]
[1726460184379,67.62880111,131.06,131.05,0.2533287]
[1726460186075,30.643884,131.06,131.05,0.2533287]
[1726460188374,67.62880111,131.06,131.05,0.2533287]
[1726460193486,13.15451756,131.06,131.05,0.2533287]
[1726460196283,6.8656,131.09,131.05,0.2533287]
[1726460196487,6.865,131.1,131.05,0.2533287]
[1726460196786,19.28835422,131.1,131.05,0.2533287]
[1726460197159,25.43126309,131.09,131.05,0.2533287]
[1726460197357,6.8661,131.08,131.05,0.2533287]
[1726460198757,23.776884,131.08,131.05,0.2533287]
[1726460202586,8.8490771,131.1,131.05,0.2533287]
[1726460203066,28.72228597,131.1,131.05,0.2533287]
[1726460203993,8.8490771,131.1,131.05,6.4522287]
[1726460205176,21.85698597,131.1,131.05,6.4522287]
[1726460205365,28.72208597,131.1,131.05,6.4522287]
[1726460205789,40.10580131,131.1,131.05,6.4522287]
[1726460208468,6.8656,131.09,131.05,6.4522287]
[1726460208670,6.8661,131.08,131.05,6.4522287]
[1726460208975,6.8666,131.07,131.05,0.2533287]
[1726460210189,31.25772421,131.08,131.05,0.2533287]
[1726460210379,6.8656,131.09,131.05,0.2533287]
[1726460210580,23.776884,131.08,131.05,0.2533287]
[1726460212773,6.8656,131.09,131.05,0.2533287]
[1726460214999,15.7141771,131.1,131.05,0.2533287]
[1726460216287,8.8490771,131.1,131.05,0.2533287]
[1726460216489,8.8490771,131.1,131.06,6.5105]
[1726460216697,19.71948095,131.17,131.07,16.6096]
[1726460216698,6.863,131.14,131.07,16.6096]
[1726460216889,31.25462421,131.14,131.07,16.6096]
[1726460217505,31.25462421,131.14,131.07,18.13427976]
[1726460217707,31.25462421,131.14,131.08,1.52456344]
[1726460218010,23.776884,131.13,131.07,18.13427975]
[1726460218306,23.776884,131.13,131.08,1.52456376]
[1726460218514,31.25462421,131.14,131.08,1.52456376]
[1726460218695,31.25462421,131.14,131.07,16.6096]
[1726460219211,31.25462421,131.14,131.08,1.5254744]
[1726460219713,0.2533287,131.19,131.1,15.74213631]
[1726460220089,6.8617,131.17,131.09,22.1776]
[1726460220289,6.8619,131.16,131.09,22.1776]
[1726460220488,6.8623,131.15,131.09,22.1776]
[1726460221435,6.8608,131.18,131.11,15.74213631]
[1726460221600,6.8608,131.18,131.1,35.74213631]
[1726460222904,0.2533287,131.19,131.13,15.74213631]
[1726460223116,0.2533287,131.19,131.16,22.3422]
[1726460223339,0.2533287,131.19,131.16,38.08433631]
[1726460223617,0.2533287,131.19,131.17,15.74213631]
[1726460223823,0.2533287,131.19,131.18,17.22716506]
[1726460224009,0.2533287,131.19,131.18,1.48502875]
[1726460226702,0.2533287,131.23,131.18,23.40312875]
[1726460227020,0.2533287,131.23,131.21,20.0]
[1726460227523,0.2533287,131.23,131.22,1.48423677]
[1726460228321,0.2533287,131.23,131.22,39.180584]
[1726460229204,0.2533287,131.23,131.22,15.4037]
[1726460230510,0.2533287,131.23,131.22,16.88759738]
[1726460230719,0.2533287,131.23,131.22,15.4037]
[1726460231712,0.2533287,131.23,131.2,6.5144]
[1726460232226,0.2533287,131.23,131.2,8.01522998]
[1726460232409,0.2533287,131.23,131.21,1.50071559]
[1726460235816,0.2533287,131.23,131.21,23.776884]
[1726460236505,0.2533287,131.23,131.22,1.52354514]
[1726460237431,0.2533287,131.27,131.25,23.776884]
[1726460237607,0.2533287,131.27,131.22,21.8855]
[1726460237808,0.2533287,131.27,131.23,20.0]
[1726460238031,0.2533287,131.27,131.22,21.8855]
[1726460242446,0.2533287,131.27,131.25,20.0]
[1726460243531,0.2533287,131.27,131.25,21.03243228]
[1726460243915,0.2533287,131.3,131.27,20.0]
[1726460244215,0.2533287,131.3,131.26,70.77899606]
[1726460244216,0.2533287,131.3,131.26,22.5515]
[1726460244412,0.2533287,131.3,131.27,1.03188171]
[1726460244631,0.2533287,131.3,131.26,6.1566]
[1726460244834,0.2533287,131.3,131.23,15.3709]
[1726460245933,0.2533287,131.3,131.24,42.95]
[1726460246141,0.2533287,131.3,131.27,20.0]
[1726460246836,0.2533287,131.3,131.26,20.0]
[1726460247318,0.2533287,131.3,131.25,20.0]
[1726460247738,0.2533287,131.3,131.25,23.776884]
[1726460248838,0.2533287,131.3,131.24,20.0]
[1726460249059,0.2533287,131.3,131.22,6.1566]
[1726460249416,0.2533287,131.3,131.22,32.13090477]
[1726460250443,0.2533287,131.3,131.23,20.0]
[1726460250619,0.2533287,131.3,131.26,20.0]
[1726460250821,0.2533287,131.3,131.27,1.52270138]
[1726460252017,0.2533287,131.3,131.23,20.0]
[1726460253724,0.2533287,131.3,131.26,68.22749606]
[1726460253956,0.2533287,131.3,131.27,1.52214303]
[1726460256322,0.2533287,131.3,131.25,20.0]
[1726460256849,0.2533287,131.3,131.26,1.52195553]
[1726460257143,0.2533287,131.3,131.24,15.496]
[1726460262153,0.2533287,131.3,131.22,30.60721206]
[1726460262154,0.2533287,131.3,131.23,20.0]
[1726460262656,0.2533287,131.3,131.22,6.1566]
[1726460265751,16.5442287,131.3,131.22,6.1566]
[1726460267860,16.5442287,131.3,131.23,20.0]
[1726460268051,16.5442287,131.3,131.24,1.52260981]
[1726460268239,16.5442287,131.3,131.23,20.0]
[1726460268565,16.5442287,131.3,131.21,20.0]
[1726460269065,16.5442287,131.3,131.22,3.96416663]
[1726460269369,16.5442287,131.3,131.2,15.1767]
[1726460269370,43.776884,131.29,131.2,15.1767]
[1726460269658,6.8557,131.28,131.19,6.113]
[1726460269960,6.8557,131.28,131.21,3.96701885]
[1726460270163,6.8557,131.28,131.19,6.113]
[1726460270349,6.8557,131.28,131.2,3.96726251]
[1726460270546,26.8561,131.27,131.21,3.96726251]
[1726460270756,6.2184,131.26,131.17,16.2716287]
[1726460271062,6.2184,131.26,131.18,3.96933428]
[1726460271357,6.2184,131.26,131.19,3.96933428]
[1726460271541,6.2184,131.26,131.17,16.2716287]
[1726460271747,6.2184,131.26,131.18,3.9700494]
[1726460271959,15.0204,131.25,131.19,3.9700494]
[1726460272136,15.0204,131.25,131.18,20.0]
[1726460272342,15.0204,131.25,131.19,3.97004549]
[1726460272544,15.0204,131.25,131.18,20.0]
[1726460277968,15.0204,131.25,131.19,1.52339077]
[1726460278174,15.0204,131.25,131.18,20.0]
[1726460285550,15.0204,131.25,131.17,20.2533287]
[1726460293356,15.0204,131.25,131.19,15.65183027]
[1726460293557,15.0204,131.25,131.2,17.17565869]
[1726460293757,15.0204,131.25,131.21,1.52382842]
[1726460294886,15.0204,131.25,131.21,17.17565869]
[1726460295100,15.9034,131.28,131.22,1.523325]
[1726460295381,15.9034,131.28,131.21,35.65183027]
[1726460295881,15.9034,131.28,131.22,1.5229402]
[1726460296688,15.9034,131.28,131.21,35.65183027]
[1726460296859,15.9034,131.28,131.22,1.5236474]